bitfinex/quotes_ETHUSD_20210701
["timestamp","ask_amount","ask_price","bid_price","bid_amount"]
[1625179577314,0.11204971,2129.0,2127.9,25.27778914]
[1625179577966,0.11204971,2129.0,2128.0,2.58097286]
[1625179578113,0.11204971,2129.0,2128.0,20.61777286]
[1625179578315,0.11204971,2129.0,2128.0,12.61777286]
[1625179578420,0.11204971,2129.0,2128.0,10.0368]
[1625179578518,0.12,2128.9,2128.0,5.0268]
[1625179578670,0.11204971,2129.0,2128.0,5.0268]
[1625179579115,2.0,2128.9,2128.0,5.0268]
[1625179579215,2.0,2128.9,2127.8,9.3957]
[1625179579424,2.0,2128.9,2127.5,10.36018106]
[1625179579425,0.04,2128.8,2127.5,10.36018106]
[1625179579769,7.04761,2128.4,2127.5,10.36018106]
[1625179579865,10.41291,2128.4,2127.5,10.36018106]
[1625179580534,10.41291,2128.4,2127.5,15.37018106]
[1625179580638,10.41291,2128.4,2127.6,2.76917936]
[1625179580834,10.41291,2128.4,2127.6,7.77917936]
[1625179581036,10.41291,2128.4,2127.8,7.04703]
[1625179581236,2.9197,2128.5,2127.8,12.05703]
[1625179581338,4.9857258,2128.9,2127.8,12.05703]
[1625179581773,4.9857258,2128.9,2127.8,13.01]
[1625179581875,1.4619,2128.9,2127.8,13.01]
[1625179581975,1.4619,2128.9,2127.8,5.01]
[1625179582077,1.4619,2128.9,2127.6,15.77917936]
[1625179582375,1.4119,2128.9,2127.6,15.77917936]
[1625179582734,7.04685,2128.6,2127.7,9.39545]
[1625179582881,11.61655,2128.6,2127.7,9.39545]
[1625179583025,11.61655,2128.6,2127.5,0.96561106]
[1625179584051,11.61655,2128.6,2127.5,8.01354106]
[1625179584152,4.5697,2128.6,2127.5,10.78272042]
[1625179584250,4.5697,2128.6,2127.5,15.79272042]
[1625179584404,4.5697,2128.6,2127.5,23.79272042]
[1625179584501,4.5697,2128.6,2127.5,8.74479042]
[1625179585354,4.5697,2128.6,2127.5,16.74479042]
[1625179585454,11.61652,2128.6,2127.9,7.04703]
[1625179585560,11.61652,2128.6,2127.9,12.05703]
[1625179587021,4.5697,2128.6,2127.9,5.01]
[1625179587271,0.11206283,2128.8,2127.5,8.74479042]
[1625179587622,0.11206283,2128.8,2127.6,0.15]
[1625179587826,0.11206283,2128.8,2127.9,3.5227026]
[1625179587920,0.11206283,2128.8,2127.9,8.00338023]
[1625179588025,0.11206283,2128.8,2127.9,13.16338023]
[1625179588124,0.11206283,2128.8,2128.3,7.04525]
[1625179588325,0.11206283,2128.8,2128.3,12.05525]
[1625179588551,0.11206283,2128.8,2128.3,20.05525]
[1625179588651,10.0852,2129.4,2128.4,28.95]
[1625179588755,2.0,2129.6,2128.4,33.7918]
[1625179588854,2.0,2129.6,2128.5,0.21]
[1625179588954,2.0,2129.6,2128.5,1.09047009]
[1625179589052,2.0,2129.6,2128.5,3.85964945]
[1625179589154,20.5073,2129.8,2128.5,3.85964945]
[1625179589305,0.2,2129.9,2129.1,7.04264]
[1625179589601,0.12,2129.8,2129.1,7.04264]
[1625179589706,0.12,2129.8,2129.1,12.05264]
[1625179589800,0.12,2129.8,2129.1,4.26091825]
[1625179589900,0.12,2129.8,2129.1,9.27091825]
[1625179590105,0.2,2129.9,2129.1,9.27091825]
[1625179590502,7.04288,2129.7,2129.1,9.27091825]
[1625179590876,7.04288,2129.7,2129.1,5.01]
[1625179590980,7.04288,2129.7,2128.9,5.01]
[1625179591078,7.04288,2129.7,2128.6,17.80007286]
[1625179591229,0.2,2129.6,2128.6,15.2191]
[1625179591326,0.2,2129.6,2128.6,5.01]
[1625179591478,0.08,2129.5,2128.4,14.4018]
[1625179591576,7.0446,2129.2,2128.5,7.04439]
[1625179591679,7.0446,2129.2,2128.4,14.4018]
[1625179591780,7.0446,2129.2,2128.2,0.15]
[1625179591977,0.06,2129.1,2128.2,0.15]
[1625179592175,2.5775,2129.3,2128.2,0.15]
[1625179592727,11.97111,2129.3,2128.2,7.19521]
[1625179592944,2.0,2129.5,2128.2,9.73363936]
[1625179593040,2.0,2129.5,2128.2,14.74363936]
[1625179593198,42.5186,2129.7,2128.2,17.31622667]
[1625179593347,32.0676,2129.7,2128.2,17.31622667]
[1625179593446,32.0676,2129.7,2128.4,3.5213936]
[1625179593541,32.0676,2129.7,2128.4,8.5313936]
[1625179593640,32.0676,2129.7,2128.5,0.15]
[1625179593788,32.0676,2129.7,2128.5,1.09075197]
[1625179594289,32.0676,2129.7,2128.5,3.62918133]
[1625179594490,17.81472,2129.7,2128.9,7.04286]
[1625179594740,17.81472,2129.7,2128.9,12.05286]
[1625179594846,7.04312,2129.7,2128.9,12.05286]
[1625179596422,7.04312,2129.7,2128.9,5.01]
[1625179596524,7.04312,2129.7,2128.7,14.40048]
[1625179596626,0.08,2129.6,2128.7,14.40048]
[1625179596775,7.1233,2129.6,2128.7,14.40048]
[1625179596876,7.0433,2129.6,2128.7,14.40048]
[1625179597227,11.2755,2129.6,2128.7,14.40048]
[1625179597327,11.2755,2129.6,2128.7,5.01]
[1625179597485,11.2755,2129.6,2128.2,0.15]
[1625179597583,0.2,2129.5,2128.1,19.55441]
[1625179597833,0.18,2129.4,2128.1,19.55441]
[1625179598183,7.04549,2128.9,2128.1,19.55441]
[1625179598284,11.50409,2128.9,2128.1,9.39311]
[1625179598686,11.50409,2128.9,2127.7,7.02366293]
[1625179598794,11.50409,2128.9,2127.7,2.53842936]
[1625179598941,0.12,2128.8,2127.7,2.53842936]
[1625179599140,2.0,2128.7,2127.7,2.53842936]
[1625179599240,7.04758,2128.6,2127.7,2.53842936]
[1625179600288,2.0,2128.7,2127.7,7.54842936]
[1625179600385,2.0,2128.7,2127.7,2.53842936]
[1625179600488,2.0,2128.7,2127.7,7.54842936]
[1625179600589,2.0,2128.7,2127.7,5.01]
[1625179600737,2.0,2128.7,2127.6,15.4268]
[1625179601137,0.06,2128.8,2127.6,15.4268]
[1625179602537,13.50563,2128.9,2127.6,15.4268]
[1625179603087,13.50563,2128.9,2127.7,7.04662]
[1625179603189,11.50563,2128.9,2127.7,7.04662]
[1625179603288,11.50563,2128.9,2127.7,12.05662]
[1625179605230,13.50563,2128.9,2127.7,12.05662]
[1625179606130,2.0,2128.8,2127.7,12.05662]
[1625179607189,2.0,2128.7,2127.7,12.05662]
[1625179607391,0.1,2128.6,2127.7,12.05662]
[1625179607642,2.0,2128.7,2127.7,12.05662]
[1625179608188,13.50563,2128.9,2127.7,12.05662]
[1625179608291,9.04703,2128.9,2127.7,12.05662]
[1625179608391,11.04703,2128.9,2127.7,12.05662]
[1625179608878,10.94703,2128.9,2127.7,12.05662]
[1625179609077,0.04,2128.8,2127.7,12.05662]
[1625179609277,2.0,2128.8,2127.7,12.05662]
[1625179609577,2.0,2128.8,2127.7,5.01]
[1625179609681,2.0,2128.8,2127.6,15.4268]
[1625179611427,9.04693,2128.8,2127.6,15.4268]
[1625179612379,2.0,2128.8,2127.6,15.4268]
[1625179612530,2.0,2128.8,2127.6,22.47309]
[1625179612630,2.0,2128.8,2127.6,23.4268]
[1625179612730,1.95,2128.8,2127.6,15.4268]
[1625179612876,1.95,2128.8,2127.6,23.4268]
[1625179613267,2.0,2128.9,2127.6,23.4268]
[1625179613766,7.04588,2128.8,2128.0,7.04588]
[1625179613966,7.04588,2128.8,2128.0,12.05588]
[1625179614067,7.04588,2128.8,2128.0,7.04588]
[1625179614167,7.04588,2128.8,2128.0,12.05588]
[1625179616655,6.94588,2128.8,2128.0,12.05588]
[1625179617060,0.06,2128.7,2128.0,12.05588]
[1625179617158,7.10593,2128.7,2128.0,12.05588]
[1625179617312,7.04593,2128.7,2128.0,12.05588]
[1625179618476,7.04593,2128.7,2128.0,5.01]
[1625179618576,7.04593,2128.7,2127.8,5.01]
[1625179618673,0.06,2128.6,2127.8,5.01]
[1625179618773,0.06,2128.6,2127.6,15.4268]
[1625179618926,12.91767,2129.0,2127.6,15.4268]
[1625179618927,2.0,2128.8,2127.6,15.4268]
[1625179619174,2.0,2128.8,2127.6,10.4168]
[1625179619373,0.04,2128.7,2127.6,10.4168]
[1625179619573,2.0,2128.8,2127.6,10.4168]
[1625179619729,2.0,2128.8,2127.5,0.96561106]
[1625179620063,4.5436,2128.6,2127.5,0.96561106]
[1625179621419,4.5436,2128.6,2127.7,7.04673]
[1625179621420,7.04683,2128.4,2127.7,7.04673]
[1625179621517,7.04683,2128.4,2127.7,12.05673]
[1625179622169,11.3953,2128.8,2127.7,12.05673]
[1625179622292,9.3953,2128.8,2127.7,12.05673]
[1625179622428,9.3953,2128.8,2127.7,20.05673]
[1625179622581,7.04623,2128.6,2127.8,7.04598]
[1625179622778,7.04623,2128.6,2127.8,12.05598]
[1625179623080,9.3953,2128.8,2127.8,12.05598]
[1625179623180,10.3949,2128.9,2127.8,12.05598]
[1625179623283,10.3949,2128.9,2127.8,17.96574179]
[1625179623434,13.05407309,2129.0,2127.8,17.96574179]
[1625179623586,0.13640309,2129.0,2127.8,17.96574179]
[1625179623835,0.13646399,2129.1,2127.8,17.96574179]
[1625179624234,0.13646399,2129.1,2127.8,10.91976179]
[1625179625224,0.13646399,2129.1,2127.8,17.96574179]
[1625179625225,7.0449,2129.0,2127.8,17.96574179]
[1625179626524,6.9949,2129.0,2127.8,17.96574179]
[1625179626816,6.9949,2129.0,2127.8,21.48813869]
[1625179626964,0.13646399,2129.1,2127.9,0.15]
[1625179627068,31.42419287,2129.4,2127.9,5.26796539]
[1625179627166,31.42419287,2129.4,2127.9,13.20796539]
[1625179627265,31.42419287,2129.4,2127.9,18.21796539]
[1625179627668,10.88409287,2129.4,2128.6,7.04356]
[1625179627868,10.7474,2129.4,2128.6,12.05356]
[1625179627970,0.13673894,2129.5,2128.6,12.05356]
[1625179628272,0.13675383,2129.6,2128.6,13.01]
[1625179628373,0.13675383,2129.6,2128.7,1.88576819]
[1625179628472,0.13686522,2129.7,2128.7,1.94576819]
[1625179628672,0.13686522,2129.7,2129.1,12.05415]
[1625179628776,0.2,2129.9,2129.1,12.05415]
[1625179628777,0.33694911,2129.9,2129.1,12.05415]
[1625179628870,0.33694911,2129.9,2129.1,17.06415]
[1625179628972,0.27389823,2130.0,2129.2,18.9]
[1625179629170,0.27389823,2130.0,2129.2,5.01]
[1625179629423,0.11199668,2129.8,2129.1,10.0222]
[1625179629722,0.11199668,2129.8,2129.1,10.94944189]
[1625179629922,7.15423668,2129.8,2129.1,10.94944189]
[1625179630373,7.15423668,2129.8,2129.1,0.92724189]
[1625179630573,0.08,2129.7,2129.1,0.92724189]
[1625179630869,0.11199668,2129.8,2129.1,0.92724189]
[1625179631661,7.15396668,2129.8,2129.1,0.92724189]
[1625179632163,7.15396668,2129.8,2129.0,5.01]
[1625179632262,7.15396668,2129.8,2128.8,15.8965]
[1625179632562,7.15396668,2129.8,2128.8,5.01]
[1625179632762,7.15396668,2129.8,2128.7,37.97038016]
[1625179632912,7.15396668,2129.8,2128.9,7.04202]
[1625179633011,7.15396668,2129.8,2128.9,12.05202]
[1625179633112,0.11199668,2129.8,2128.9,12.05202]
[1625179633367,6.87,2130.2,2129.0,37.55]
[1625179633467,10.86338542,2130.3,2129.0,39.75920183]
[1625179633568,10.86338542,2130.3,2129.0,44.76920183]
[1625179633670,10.5894,2130.3,2129.1,0.15]
[1625179633765,10.5894,2130.3,2129.1,1.10016226]
[1625179634120,2.0,2130.4,2129.7,7.03912]
[1625179634222,0.27404029,2130.6,2129.8,30.6]
[1625179634322,0.27404029,2130.6,2129.8,43.1992]
[1625179634418,0.27404029,2130.6,2129.8,48.2092]
[1625179634524,0.2,2130.9,2129.8,50.35840183]
[1625179634719,0.2,2130.9,2129.9,0.06]
[1625179634922,0.2,2130.9,2130.0,0.15]
[1625179635372,0.2,2130.9,2130.2,7.0374]
[1625179635571,0.2,2130.9,2130.2,5.01]
[1625179635833,0.2,2130.9,2130.0,1.2337]
[1625179636329,0.2,2130.9,2130.1,7.03775]
[1625179636430,0.2,2130.9,2130.0,1.2337]
[1625179638468,0.2,2130.9,2130.0,0.15]
[1625179639218,0.2,2130.9,2130.0,7.18842]
[1625179639416,0.2,2130.9,2130.0,12.19842]
[1625179639517,0.2,2130.9,2130.0,20.19842]
[1625179639621,0.2,2130.9,2130.0,5.16]
[1625179639871,0.2,2130.9,2129.8,5.01]
[1625179639968,0.2,2130.9,2129.5,14.55206145]
[1625179640068,0.18,2130.8,2129.5,22.55206145]
[1625179640381,7.04017,2130.5,2129.5,22.55206145]
[1625179640436,7.04017,2130.5,2129.5,22.5455]
[1625179642622,7.04017,2130.5,2129.5,9.5355]
[1625179642929,0.1,2130.4,2129.5,9.5355]
[1625179643031,0.1,2130.4,2129.5,9.3855]
[1625179643283,12.90538,2131.1,2129.5,11.71616227]
[1625179643284,10.0254,2131.0,2129.5,11.71616227]
[1625179643779,10.0254,2131.0,2129.5,24.72616227]
[1625179643880,7.03979,2130.8,2129.9,7.03942]
[1625179644083,7.03979,2130.8,2129.9,12.04942]
[1625179644338,0.2,2130.7,2129.9,5.01]
[1625179644432,0.2,2130.7,2129.6,5.01]
[1625179644530,0.2,2130.7,2129.4,15.6941]
[1625179644897,4.4848,2130.9,2129.8,7.03974]
[1625179644898,7.0401,2130.8,2129.8,7.03974]
[1625179644991,7.0401,2130.8,2129.8,4.25918759]
[1625179645089,7.0401,2130.8,2129.8,9.26918759]
[1625179645842,0.2,2130.9,2129.8,9.26918759]
[1625179646594,0.08,2130.8,2129.8,9.26918759]
[1625179646691,0.2,2130.9,2129.8,9.26918759]
[1625179647403,7.23932,2130.9,2129.8,9.26918759]
[1625179648809,7.23932,2130.9,2129.8,5.01]
[1625179648910,12.24932,2130.9,2129.8,5.01]
[1625179649010,0.2,2130.8,2129.5,5.01]
[1625179649109,0.2,2130.8,2129.4,15.6941]
[1625179649444,0.2,2130.7,2129.4,5.01]
[1625179649609,0.2,2130.7,2129.3,15.9511]
[1625179649810,0.2,2130.7,2129.3,22.99232]
[1625179649811,7.04115,2130.3,2129.3,22.99232]
[1625179649914,9.38832,2130.5,2129.3,30.99232]
[1625179650060,9.38904,2130.7,2129.3,23.9511]
[1625179650159,9.38904,2130.7,2129.3,13.01]
[1625179650264,9.38904,2130.7,2129.3,5.01]
[1625179650459,9.38904,2130.7,2129.2,27.44637998]
[1625179650811,10.9705,2130.8,2129.3,2.33066227]
[1625179650913,18.01006,2130.8,2129.9,7.03937]
[1625179651008,7.03956,2130.8,2129.9,7.03937]
[1625179651160,7.03956,2130.8,2129.9,12.04937]
[1625179651260,0.08,2130.7,2129.9,12.04937]
[1625179651640,7.03956,2130.8,2129.9,12.04937]
[1625179651990,0.2,2130.9,2129.9,12.04937]
[1625179652145,0.2,2130.9,2129.9,25.10754595]
[1625179652290,0.2,2130.9,2129.9,20.39883822]
[1625179652840,0.2,2130.9,2129.9,21.78503822]
[1625179652939,0.2,2130.9,2130.0,0.15]
[1625179653040,0.2,2130.9,2130.4,7.03755]
[1625179653243,0.2,2130.9,2130.4,5.01]
[1625179653389,0.2,2130.9,2130.2,14.3934]
[1625179654743,0.2,2130.9,2130.2,5.01]
[1625179654991,0.2,2130.9,2129.8,24.905]
[1625179655334,0.2,2130.9,2129.8,25.055]
[1625179655433,0.2,2130.9,2129.8,35.38566227]
[1625179655736,0.2,2130.9,2129.8,27.38566227]
[1625179656385,0.2,2130.9,2130.1,9.38374]
[1625179656586,0.2,2130.9,2130.1,14.39374]
[1625179656690,0.2,2130.9,2130.1,5.01]
[1625179656887,0.2,2130.9,2129.8,20.99026227]
[1625179656888,0.2,2130.9,2129.8,26.00026227]
[1625179658431,0.2,2130.9,2130.3,7.03809]
[1625179658528,0.2,2130.9,2130.3,12.04809]
[1625179658831,0.2,2130.9,2130.3,5.01]
[1625179659035,0.2,2130.9,2129.8,24.905]
[1625179659185,3.5971,2130.9,2129.8,24.905]
[1625179659279,0.08,2130.8,2129.8,24.905]
[1625179659384,0.08,2130.8,2129.8,14.3954]
[1625179659633,7.04016,2130.4,2129.8,5.01]
[1625179659732,7.04016,2130.4,2129.5,14.39677]
[1625179659733,11.29486,2130.4,2129.5,14.39677]
[1625179659879,0.2,2130.3,2129.5,14.39677]
[1625179660328,4.2547,2130.4,2129.5,14.39677]
[1625179660696,4.2547,2130.4,2129.7,7.04032]
[1625179660938,4.2547,2130.4,2129.7,12.05032]
[1625179661091,9.9509,2130.8,2129.7,12.05032]
[1625179661987,9.9509,2130.8,2129.7,20.05032]
[1625179662142,17.49129,2130.9,2130.2,7.03861]
[1625179662339,17.49129,2130.9,2130.2,12.04861]
[1625179662588,7.23899,2130.9,2130.2,12.04861]
[1625179662789,0.1,2130.8,2130.2,12.04861]
[1625179663182,0.1,2130.8,2130.2,5.01]
[1625179663338,0.2,2130.9,2130.2,12.04861]
[1625179663433,0.2,2130.9,2130.2,12.64717227]
[1625179663530,0.2,2130.9,2130.2,17.65717227]
[1625179663632,0.2,2130.9,2130.2,27.91343587]
[1625179663883,0.2,2130.9,2130.2,20.87482587]
[1625179664180,0.2,2130.9,2130.2,12.87482587]
[1625179664433,0.2,2130.9,2130.2,20.87482587]
[1625179664685,0.2,2130.9,2130.5,7.03654]
[1625179664933,0.2,2130.9,2130.5,12.04654]
[1625179665641,0.2,2130.9,2130.5,5.01]
[1625179665891,0.2,2130.9,2130.4,5.01]
[1625179666140,0.2,2130.9,2130.1,28.53937431]
[1625179666241,0.2,2130.9,2130.1,27.5982111]
[1625179666493,0.05,2130.9,2130.1,19.5982111]
[1625179666603,0.05,2130.9,2130.0,10.6025]
[1625179666695,0.05,2130.9,2129.6,10.4793]
[1625179666794,0.05,2130.9,2129.5,20.3756]
[1625179667041,0.16,2130.8,2129.5,20.3756]
[1625179667147,7.04051,2130.5,2129.6,7.04029]
[1625179668036,7.04051,2130.5,2129.5,15.167]
[1625179668340,0.06,2130.4,2129.5,5.01]
[1625179668543,0.06,2130.4,2129.2,5.01]
[1625179668640,1.4178,2130.5,2129.0,15.4081]
[1625179669443,14.39734,2130.7,2129.0,15.4081]
[1625179669444,9.38878,2130.4,2129.3,7.04158]
[1625179669593,9.38878,2130.4,2129.3,12.05158]
[1625179669884,12.90825,2130.7,2129.3,12.05158]
[1625179670184,12.90825,2130.7,2129.3,14.38224227]
[1625179670378,12.90825,2130.7,2129.3,9.37224227]
[1625179670477,0.18,2130.6,2129.3,9.37224227]
[1625179670728,0.08,2130.5,2129.3,9.37224227]
[1625179671431,7.04124,2130.3,2129.3,9.37224227]
[1625179671680,7.04124,2130.3,2129.3,14.38224227]
[1625179672027,0.06,2130.2,2129.3,14.38224227]
[1625179672275,11.63074,2130.3,2129.3,12.05158]
[1625179672374,4.5895,2130.3,2129.3,12.05158]
[1625179672475,4.5895,2130.3,2129.3,5.01]
[1625179672575,1.0846,2130.2,2129.0,24.79732]
[1625179672725,1.2046,2130.2,2129.0,19.78732]
[1625179672923,0.08,2130.1,2129.0,19.78732]
[1625179673127,1.0846,2130.2,2129.0,19.78732]
[1625179673574,1.0846,2130.2,2129.0,22.07043686]
[1625179673674,9.38911,2130.4,2129.0,22.07043686]
[1625179673974,9.38911,2130.4,2129.0,35.08043686]
[1625179674126,9.38911,2130.4,2129.3,9.38801]
[1625179674366,9.38911,2130.4,2129.3,15.34601662]
[1625179674568,0.14,2130.3,2129.3,15.34601662]
[1625179675319,26.71167,2130.7,2129.3,15.34601662]
[1625179675623,23.19076,2130.7,2129.3,15.34601662]
[1625179675724,19.66984,2130.7,2129.3,15.34601662]
[1625179676723,16.66984,2130.7,2129.3,15.34601662]
[1625179676877,7.04092,2130.5,2129.3,15.34601662]
[1625179677277,7.04092,2130.5,2129.3,23.34601662]
[1625179677377,16.66984,2130.7,2129.3,14.96340662]
[1625179677526,10.2825,2130.7,2129.3,14.96340662]
[1625179677779,10.2569,2130.9,2129.9,7.0396]
[1625179677881,10.2569,2130.9,2129.8,9.38564]
[1625179677980,10.2569,2130.9,2129.8,23.34614732]
[1625179678179,10.2569,2130.9,2130.0,2.27752148]
[1625179678281,10.2569,2130.9,2130.0,5.91072148]
[1625179678381,10.2569,2130.9,2130.1,0.15]
[1625179678481,0.05,2130.9,2130.1,0.15]
[1625179678937,0.05,2130.9,2130.1,5.20732116]
[1625179679035,0.05,2130.9,2130.1,12.50692597]
[1625179679239,0.05,2130.9,2130.4,7.03748]
[1625179679342,0.05,2130.9,2130.4,7.97964606]
[1625179679440,0.05,2130.9,2130.5,0.06]
[1625179679541,0.05,2130.9,2130.5,4.5228]
[1625179679789,0.05,2130.9,2130.5,9.5328]
[1625179680441,0.05,2130.9,2130.6,7.03663]
[1625179680591,0.05,2130.9,2130.6,12.04663]
[1625179682430,0.05,2130.9,2130.6,5.01]
[1625179682526,0.05,2130.9,2130.5,9.5328]
[1625179682629,0.05,2130.9,2130.5,4.5228]
[1625179682728,0.05,2130.9,2130.5,9.5328]
[1625179683975,0.05,2130.9,2130.5,16.57005]
[1625179684131,0.05,2130.9,2130.5,4.5228]
[1625179684230,4.9158,2130.9,2129.8,0.95050732]
[1625179684381,4.9158,2130.9,2129.4,21.2747]
[1625179684382,3.0,2130.7,2129.4,21.2747]
[1625179684478,3.0,2130.7,2129.4,10.6798]
[1625179685513,7.04045,2130.4,2129.4,10.6798]
[1625179685567,7.04045,2130.4,2129.4,15.6898]
[1625179686068,11.69515,2130.4,2129.4,15.6898]
[1625179686166,11.69515,2130.4,2129.4,10.6798]
[1625179686269,11.69515,2130.4,2129.3,17.72773709]
[1625179686366,0.1,2130.3,2129.3,17.72773709]
[1625179686467,0.1,2130.3,2129.3,5.99878709]
[1625179686616,4.6547,2130.4,2129.3,5.99878709]
[1625179687469,4.6547,2130.4,2129.3,11.00878709]
[1625179688567,60.286,2130.9,2129.3,11.00878709]
[1625179688869,0.06,2130.8,2129.3,11.00878709]
[1625179689167,0.06,2130.8,2129.3,5.95800662]
[1625179689322,0.06,2130.8,2129.3,5.01]
[1625179689418,0.06,2130.8,2129.2,16.0006]
[1625179689518,0.2,2130.7,2129.2,16.0006]
[1625179689868,0.2,2130.7,2129.2,24.0006]
[1625179690328,0.2,2130.7,2129.2,16.0006]
[1625179690628,0.04,2130.6,2129.2,16.0006]
[1625179691380,61.796,2130.9,2129.2,16.0006]
[1625179693572,0.09889534,2130.8,2129.2,16.0006]
[1625179693672,63.0325,2130.9,2129.2,16.0006]
[1625179693772,0.2,2130.7,2129.2,16.0006]
[1625179694171,1.1478,2130.8,2129.2,16.0006]
[1625179694970,1.1478,2130.8,2129.2,24.0006]
[1625179695220,1.1478,2130.8,2129.2,16.0006]
[1625179695371,0.06,2130.7,2129.2,16.0006]
[1625179695771,0.06,2130.7,2129.2,24.0006]
[1625179696072,0.06,2130.7,2129.2,16.0006]
[1625179696172,0.11197512,2130.6,2129.2,16.0006]
[1625179696421,0.11197512,2130.6,2129.2,18.23432148]
[1625179696527,0.11197512,2130.6,2129.2,18.38432148]
[1625179697681,0.06197512,2130.6,2129.2,18.38432148]
[1625179698630,0.06,2130.5,2129.2,18.2740319]
[1625179699876,0.06197512,2130.6,2129.2,18.2740319]
[1625179700467,7.04045,2130.4,2129.6,7.04029]
[1625179700566,7.04045,2130.4,2129.6,12.05029]
[1625179701598,0.11196982,2130.3,2129.6,12.05029]
[1625179703001,7.15273982,2130.3,2129.6,12.05029]
[1625179704451,0.11196982,2130.3,2129.6,12.05029]
[1625179705606,0.11196982,2130.3,2129.6,20.05029]
[1625179705802,0.11196982,2130.3,2129.7,0.15]
[1625179705900,0.11196982,2130.3,2129.7,4.8007]
[1625179706053,0.11196982,2130.3,2129.8,0.06]
[1625179706298,0.11196982,2130.3,2129.9,0.15]
[1625179706749,0.11196982,2130.3,2130.0,2.23372148]
[1625179706852,0.11196982,2130.3,2130.0,9.27222148]
[1625179706949,0.11196982,2130.3,2130.1,0.15]
[1625179707849,6.982e-05,2130.3,2130.1,0.15]
[1625179708073,6.982e-05,2130.3,2130.2,7.09841]
[1625179708161,6.982e-05,2130.3,2130.2,10.31331]
[1625179708312,6.982e-05,2130.3,2130.2,15.32331]
[1625179709516,6.982e-05,2130.3,2130.2,15.26331]
[1625179709618,6.982e-05,2130.3,2130.2,8.2249]
[1625179712948,0.05,2130.9,2130.3,8.25]
[1625179713050,0.05,2130.9,2130.3,5.01]
[1625179713248,0.05,2130.9,2130.2,9.291]
[1625179713350,0.05,2130.9,2130.2,4.281]
[1625179713450,0.05,2130.9,2130.5,7.03738]
[1625179713552,0.05,2130.9,2130.5,12.04738]
[1625179719446,7.08866,2130.9,2130.5,5.01]
[1625179719551,7.08866,2130.9,2130.2,5.01]
[1625179719651,0.2,2130.8,2130.2,5.01]
[1625179719747,0.2,2130.8,2130.1,15.4868]
[1625179719852,0.2,2130.8,2130.1,5.01]
[1625179719951,0.06,2130.7,2130.1,5.01]
[1625179720050,0.05,2130.9,2129.9,24.38616]
[1625179720703,0.05,2130.9,2129.9,32.38616]
[1625179720852,0.05,2130.9,2129.9,23.0015]
[1625179721505,0.05,2130.9,2129.9,25.2622086]
[1625179721615,0.05,2130.9,2130.0,15.15]
[1625179721714,11.12615559,2131.8,2130.1,37.35]
[1625179721715,0.27057137,2131.8,2130.1,37.35]
[1625179721819,0.27057137,2131.8,2130.9,7.03628]
[1625179721970,0.27057137,2131.8,2130.9,12.91745161]
[1625179722061,0.27057137,2131.8,2130.9,17.92745161]
[1625179722266,7.07,2131.9,2130.9,17.92745161]
[1625179722360,7.07,2131.9,2130.9,20.34649355]
[1625179722462,7.07,2131.9,2131.0,0.15]
[1625179722563,0.2,2131.9,2131.0,0.15]
[1625179722813,0.2,2131.9,2131.4,7.03441]
[1625179722913,0.2,2131.9,2131.4,11.91871]
[1625179723011,0.2,2131.9,2131.4,16.92871]
[1625179725005,17.17567,2132.5,2131.5,20.2]
[1625179725160,6.87,2132.6,2131.5,20.2]
[1625179725312,6.87,2132.6,2131.9,7.03227]
[1625179725408,6.87,2132.6,2131.9,10.69187]
[1625179725511,0.2,2132.9,2131.9,15.70187]
[1625179725707,0.08,2132.5,2131.9,8.6696]
[1625179725910,0.2,2132.9,2131.9,8.6696]
[1625179726350,2.77356439,2132.9,2131.9,3.6596]
[1625179726453,2.77356439,2132.9,2131.3,5.01]
[1625179726551,9.37911,2132.6,2131.3,5.01]
[1625179726651,9.37911,2132.6,2131.3,0.00699492]
[1625179726850,9.37911,2132.6,2131.4,0.15]
[1625179727050,9.37911,2132.6,2131.4,3.2521]
[1625179728001,9.37911,2132.6,2131.4,8.2621]
[1625179728100,9.37911,2132.6,2131.4,5.16]
[1625179728101,0.12,2132.5,2131.4,5.16]
[1625179728252,0.12,2132.5,2131.4,5.01]
[1625179728351,0.12,2132.5,2131.3,0.00699492]
[1625179728454,3.51776,2132.4,2131.3,0.00699492]
[1625179728550,3.71776,2132.4,2131.3,0.00699492]
[1625179728751,0.16,2132.3,2131.3,0.00699492]
[1625179728959,7.03545,2131.9,2131.3,0.00699492]
[1625179729453,9.38059,2132.1,2131.3,0.00699492]
[1625179729605,41.907,2132.2,2131.3,0.00699492]
[1625179729851,31.5405,2132.2,2131.3,0.00699492]
[1625179730156,0.04,2132.1,2131.3,7.04132492]
[1625179730406,28.62821,2132.2,2131.3,5.01699492]
[1625179730696,10.7936,2132.2,2131.3,11.00649492]
[1625179730785,10.7936,2132.2,2131.3,5.99649492]
[1625179730880,10.7936,2132.2,2131.3,19.00649492]
[1625179731081,10.7936,2132.2,2131.3,20.51169492]
[1625179731384,10.1305,2132.5,2131.3,20.51169492]
[1625179731485,20.9808,2132.7,2131.3,20.51169492]
[1625179731586,20.9808,2132.7,2131.6,7.03334]
[1625179731688,10.5775,2132.7,2131.6,7.03334]
[1625179731784,10.5775,2132.7,2131.6,12.04334]
[1625179732037,10.5775,2132.7,2131.7,0.15]